fUSD/lending_fUSD_20250206
["ID","MTS","AMOUNT","RATE_DAILY","PERIOD"]
[351860718,1738824642576,-500.0,0.0002,3]
[351860721,1738824642595,-500.0,0.0002,3]
[351860724,1738824642608,-500.0,0.0002,3]
[351860727,1738824642624,-500.0,0.0002,3]
[351860729,1738824642637,-508.2012718,0.0002,3]
[351860731,1738824642654,-505.52540878,0.0002,3]
[351860734,1738824642671,-151.0,0.0002,2]
[351860737,1738824642687,-151.0,0.0002,2]
[351860739,1738824642704,-151.0,0.0002,2]
[351860742,1738824642719,-151.0,0.0002,2]
[351860745,1738824642735,-151.0,0.0002,2]
[351860748,1738824642751,-151.714722,0.0002,2]
[351860751,1738824642767,-501.38083689,0.0002,3]
[351860753,1738824642783,-504.53013022,0.0002,3]
[351860756,1738824642798,-608.45978232,0.0002,3]
[351860758,1738824642812,-500.0,0.0002,3]
[351860761,1738824642827,-500.0,0.0002,3]
[351860763,1738824642841,-504.79782064,0.0002,3]
[351860765,1738824642856,-260.68159869,0.0002,3]
[351860768,1738824642873,-509.66933957,0.0002,3]
[351860771,1738824642888,-502.77166775,0.0002,3]
[351860773,1738824642902,-505.45303386,0.0002,3]
[351860776,1738824642916,-500.0,0.0002,3]
[351860778,1738824642931,-500.0,0.0002,3]
[351860781,1738824642946,-500.0,0.0002,3]
[351860784,1738824642961,-500.0,0.0002,3]
[351860786,1738824642975,-500.0,0.0002,3]
[351860790,1738824642990,-312.41,0.0002,3]
[351860792,1738824643004,-500.0,0.0002,3]
[351860795,1738824643018,-360.34134814,0.0002,3]
[351860798,1738824643033,-631.77385075,0.0002,3]
[351860802,1738824643048,-500.0,0.0002,3]
[351860805,1738824643061,-500.0,0.0002,3]
[351860808,1738824643071,-500.0,0.0002,3]
[351860823,1738824643080,-603.07121617,0.0002,3]
[351860828,1738824643208,-506.02023995,0.0002,3]
[351860830,1738824643219,-500.0,0.0002,3]
[351860833,1738824643228,-500.0,0.0002,3]
[351860835,1738824643238,-500.0,0.0002,3]
[351860837,1738824643247,-500.0,0.0002,3]
[351860838,1738824643256,-500.0,0.0002,3]
[351860840,1738824643266,-500.0,0.0002,3]
[351860842,1738824643275,-500.0,0.0002,3]
[351860844,1738824643284,-502.07789325,0.0002,3]
[351860846,1738824643294,-501.32171362,0.0002,3]
[351860848,1738824643304,-500.0,0.0002,3]
[351860850,1738824643314,-500.0,0.0002,3]
[351860852,1738824643323,-500.0,0.0002,3]
[351860854,1738824643332,-556.2792567,0.0002,3]
[351860856,1738824643342,-500.0,0.0002,3]
[351860858,1738824643351,-500.0,0.0002,3]
[351860860,1738824643360,-500.0,0.0002,3]
[351860862,1738824643370,-644.01283154,0.0002,3]
[351860864,1738824643379,-637.68843907,0.0002,3]
[351860866,1738824643389,-500.0,0.0002,3]
[351860868,1738824643398,-504.1679292,0.0002,3]
[351860870,1738824643408,-478.42365768,0.0002,3]
[351860873,1738824643418,-502.82582375,0.0002,3]
[351860875,1738824643427,-500.0,0.0002,3]
[351860877,1738824643437,-503.0769464,0.0002,3]
[351860878,1738824643447,-500.0,0.0002,3]
[351860880,1738824643456,-500.0,0.0002,3]
[351860883,1738824643466,-500.0,0.0002,3]
[351860885,1738824643475,-500.0,0.0002,3]
[351860887,1738824643484,-502.86838093,0.0002,3]
[351860889,1738824643494,-500.0,0.0002,3]
[351860891,1738824643503,-500.0,0.0002,3]
[351860894,1738824643512,-500.0,0.0002,3]
[351860897,1738824643521,-500.0,0.0002,3]
[351860899,1738824643530,-151.0,0.0002,2]
[351860900,1738824643539,-500.0,0.0002,3]
[351860902,1738824643548,-151.0,0.0002,2]
[351860904,1738824643558,-500.0,0.0002,3]
[351860906,1738824643567,-151.0,0.0002,2]
[351860908,1738824643577,-500.0,0.0002,3]
[351860910,1738824643586,-151.0,0.0002,2]
[351860913,1738824643596,-592.8185056,0.0002,3]
[351860915,1738824643605,-151.0,0.0002,2]
[351860916,1738824643614,-151.0,0.0002,2]
[351860918,1738824643624,-501.35790133,0.0002,3]
[351860920,1738824643633,-502.8887479,0.0002,3]
[351860922,1738824643644,-502.88093868,0.0002,3]
[351860925,1738824643658,-502.83734239,0.0002,3]
[351860927,1738824643667,-500.0,0.0002,3]
[351860929,1738824643676,-500.0,0.0002,3]
[351860931,1738824643686,-500.0,0.0002,3]
[351860932,1738824643698,-500.0,0.0002,3]
[351860935,1738824643708,-217.86466076,0.0002,3]
[351860936,1738824643718,-500.0,0.0002,3]
[351860939,1738824643729,-500.0,0.0002,3]
[351860940,1738824643738,-500.0,0.0002,3]
[351860943,1738824643748,-500.0,0.0002,3]
[351860944,1738824643757,-503.4784583,0.0002,3]
[351860946,1738824643767,-500.0,0.0002,3]
[351860948,1738824643776,-500.0,0.0002,3]
[351860950,1738824643786,-500.0,0.0002,3]
[351860952,1738824643795,-502.77059723,0.0002,3]
[351860954,1738824643804,-500.0,0.0002,3]
[351860956,1738824643813,-500.0,0.0002,3]
[351860958,1738824643823,-500.0,0.0002,3]
[351860960,1738824643832,-500.0,0.0002,3]
[351860962,1738824643843,-500.0,0.0002,3]
[351860964,1738824643852,-484.80609025,0.0002,3]
[351860966,1738824643862,-500.0,0.0002,3]
[351860968,1738824643872,-500.0,0.0002,3]
[351860970,1738824643881,-614.9669433,0.0002,3]
[351860972,1738824643891,-504.58753181,0.0002,3]
[351860974,1738824643901,-500.0,0.0002,3]
[351860976,1738824643910,-500.0,0.0002,3]
[351860978,1738824643919,-502.36590718,0.0002,3]
[351860980,1738824643929,-504.63638472,0.0002,3]
[351860982,1738824643938,-500.0,0.0002,3]
[351860984,1738824643948,-500.0,0.0002,3]
[351860986,1738824643958,-151.0,0.0002,2]
[351860988,1738824643967,-500.0,0.0002,3]
[351860990,1738824643977,-500.0,0.0002,3]
[351860992,1738824643986,-151.0,0.0002,2]
[351860994,1738824643996,-500.0,0.0002,3]
[351860996,1738824644006,-151.0,0.0002,2]
[351860998,1738824644015,-500.0,0.0002,3]
[351861000,1738824644025,-151.0,0.0002,2]
[351861002,1738824644035,-504.33478634,0.0002,3]
[351861004,1738824644045,-151.0,0.0002,2]
[351861006,1738824644055,-151.0,0.0002,2]
[351861008,1738824644064,-151.0,0.0002,2]
[351861010,1738824644074,-151.0,0.0002,2]
[351861012,1738824644083,-500.0,0.0002,3]
[351861014,1738824644092,-220.57803,0.0002,2]
[351861016,1738824644102,-500.0,0.0002,3]
[351861018,1738824644112,-500.0,0.0002,3]
[351861020,1738824644121,-500.0,0.0002,3]
[351861022,1738824644131,-500.0,0.0002,3]
[351861024,1738824644140,-502.77999725,0.0002,3]
[351861026,1738824644149,-500.0,0.0002,3]
[351861028,1738824644159,-500.0,0.0002,3]
[351861030,1738824644168,-500.0,0.0002,3]
[351861032,1738824644179,-500.0,0.0002,3]
[351861034,1738824644189,-500.0,0.0002,3]
[351861036,1738824644198,-500.0,0.0002,3]
[351861038,1738824644208,-500.0,0.0002,3]
[351861040,1738824644218,-501.25278451,0.0002,3]
[351861042,1738824644227,-500.0,0.0002,3]
[351861044,1738824644237,-500.0,0.0002,3]
[351861046,1738824644246,-500.0,0.0002,3]
[351861048,1738824644255,-500.0,0.0002,3]
[351861050,1738824644265,-500.0,0.0002,3]
[351861052,1738824644275,-500.0,0.0002,3]
[351861054,1738824644285,-508.31275999,0.0002,3]
[351861056,1738824644294,-500.0,0.0002,3]
[351861058,1738824644304,-500.0,0.0002,3]
[351861060,1738824644313,-500.0,0.0002,3]
[351861062,1738824644323,-500.0,0.0002,3]
[351861064,1738824644332,-500.0,0.0002,3]
[351861066,1738824644342,-500.0,0.0002,3]
[351861068,1738824644351,-500.0,0.0002,3]
[351861070,1738824644361,-500.0,0.0002,3]
[351861072,1738824644370,-500.0,0.0002,3]
[351861074,1738824644380,-506.60112953,0.0002,3]
[351861076,1738824644389,-500.0,0.0002,3]
[351861078,1738824644399,-500.88588884,0.0002,3]
[351861080,1738824644408,-500.0,0.0002,3]
[351861082,1738824644417,-500.0,0.0002,3]
[351861084,1738824644427,-500.99697166,0.0002,3]
[351861087,1738824644437,-500.0,0.0002,3]
[351861088,1738824644447,-510.78280924,0.0002,3]
[351861091,1738824644456,-500.0,0.0002,3]
[351861092,1738824644465,-500.0,0.0002,3]
[351861095,1738824644475,-500.0,0.0002,3]
[351861097,1738824644485,-500.0,0.0002,3]
[351861099,1738824644494,-611.76498229,0.0002,3]
[351861101,1738824644504,-485.47857533,0.0002,3]
[351861102,1738824644513,-500.0,0.0002,3]
[351861105,1738824644523,-502.58172948,0.0002,3]
[351861106,1738824644532,-506.157775,0.0002,3]
[351861109,1738824644542,-500.0,0.0002,3]
[351861110,1738824644551,-500.0,0.0002,3]
[351861113,1738824644560,-601.73476471,0.0002,3]
[351861114,1738824644569,-501.10167766,0.0002,3]
[351861117,1738824644579,-500.0,0.0002,3]
[351861118,1738824644588,-500.0,0.0002,3]
[351861120,1738824644597,-500.0,0.0002,3]
[351861122,1738824644606,-500.0,0.0002,3]
[351861124,1738824644616,-500.0,0.0002,3]
[351861126,1738824644625,-500.0,0.0002,3]
[351861128,1738824644635,-624.62714602,0.0002,3]
[351861131,1738824644645,-500.0,0.0002,3]
[351861132,1738824644658,-373.74,0.0002,3]
[351861134,1738824644667,-191.5677795,0.0002,3]
[351861136,1738824644677,-356.32294848,0.0002,3]
[351861138,1738824644686,-500.0,0.0002,3]
[351861140,1738824644696,-500.0,0.0002,3]
[351861142,1738824644706,-500.0,0.0002,3]
[351861144,1738824644716,-500.0,0.0002,3]
[351861155,1738824644804,-501.42547574,0.0002,3]
[351861157,1738824644814,-500.0,0.0002,3]
[351861159,1738824644824,-500.0,0.0002,3]
[351861161,1738824644833,-500.0,0.0002,3]
[351861163,1738824644843,-560.96078288,0.0002,3]
[351861165,1738824644852,-506.9061128,0.0002,3]
[351861167,1738824644861,-505.34835114,0.0002,3]
[351861169,1738824644871,-500.0,0.0002,3]
[351861171,1738824644880,-501.15554484,0.0002,3]
[351861173,1738824644889,-500.0,0.0002,3]
[351861175,1738824644899,-500.0,0.0002,3]
[351861177,1738824644908,-500.0,0.0002,3]
[351861179,1738824644918,-500.0,0.0002,3]
[351861181,1738824644927,-500.0,0.0002,3]
[351861183,1738824644936,-500.0,0.0002,3]
[351861185,1738824644945,-500.0,0.0002,3]
[351861187,1738824644954,-500.0,0.0002,3]
[351861189,1738824644963,-500.0,0.0002,3]
[351861191,1738824644972,-500.0,0.0002,3]
[351861193,1738824644982,-500.0,0.0002,2]
[351861195,1738824644991,-503.84857935,0.0002,2]
[351861197,1738824645001,-500.0,0.0002,7]
[351861199,1738824645010,-500.0,0.0002,7]
[351861201,1738824645019,-507.35456104,0.0002,7]
[351861203,1738824645030,-501.89533096,0.0002,3]
[351861205,1738824645039,-509.18498689,0.0002,3]
[351861207,1738824645048,-526.64538054,0.0002,3]
[351861209,1738824645057,-500.0,0.0002,3]
[351861211,1738824645067,-500.0,0.0002,3]
[351861213,1738824645076,-500.0,0.0002,3]
[351861215,1738824645086,-500.0,0.0002,3]
[351861217,1738824645095,-423.42967465,0.0002,3]
[351861219,1738824645104,-515.7476205,0.0002,3]
[351861221,1738824645113,-502.26121347,0.0002,3]
[351861223,1738824645123,-500.0,0.0002,3]
[351861225,1738824645132,-500.0,0.0002,3]
[351861227,1738824645141,-504.92368655,0.0002,3]
[351861229,1738824645150,-505.4041061,0.0002,3]
[351861231,1738824645159,-502.23505563,0.0002,3]
[351861233,1738824645168,-454.61993957,0.0002,3]
[351861235,1738824645177,-507.80977391,0.0002,3]
[351861237,1738824645186,-502.47908169,0.0002,3]
[351861239,1738824645196,-500.0,0.0002,3]
[351861241,1738824645205,-184.79782672,0.0002,3]
[351861242,1738824645214,-500.0,0.0002,3]
[351861243,1738824645224,-500.0,0.0002,3]
[351861244,1738824645233,-500.0,0.0002,3]
[351861245,1738824645242,-500.0,0.0002,3]
[351861246,1738824645251,-500.0,0.0002,3]
[351861247,1738824645260,-500.0,0.0002,3]
[351861248,1738824645270,-500.0,0.0002,3]
[351861249,1738824645279,-195.75787728,0.0002,3]
[351861250,1738824645288,-502.57245286,0.0002,3]
[351861251,1738824645297,-500.0,0.0002,3]
[351861252,1738824645307,-500.0,0.0002,3]
[351861253,1738824645316,-500.0,0.0002,3]
[351861254,1738824645325,-500.0,0.0002,3]
[351861255,1738824645334,-500.0,0.0002,3]
[351861257,1738824645344,-500.0,0.0002,3]
[351861259,1738824645352,-150.67187209,0.0002,3]
[351861261,1738824645362,-500.0,0.0002,3]
[351861263,1738824645371,-500.0,0.0002,3]
[351861265,1738824645380,-264.92864076,0.0002,3]
[351861266,1738824645389,-500.0,0.0002,3]
[351861268,1738824645398,-500.0,0.0002,3]
[351861270,1738824645408,-500.0,0.0002,3]
[351861272,1738824645417,-500.0,0.0002,3]
[351861274,1738824645426,-500.0,0.0002,3]
[351861276,1738824645435,-256.99760132,0.0002,3]
[351861278,1738824645444,-500.0,0.0002,3]
[351861280,1738824645453,-502.44017519,0.0002,3]
[351861282,1738824645462,-540.61052851,0.0002,3]
[351861284,1738824645471,-504.39792058,0.0002,3]
[351861286,1738824645480,-500.0,0.0002,3]
[351861288,1738824645488,-500.0,0.0002,3]
[351861290,1738824645497,-500.71433304,0.0002,3]
[351861292,1738824645507,-500.0,0.0002,3]
[351861294,1738824645516,-500.0,0.0002,3]
[351861296,1738824645526,-288.74642957,0.0002,3]
[351861298,1738824645535,-500.0,0.0002,3]
[351861300,1738824645544,-501.24856067,0.0002,3]
[351861302,1738824645554,-500.0,0.0002,3]
[351861304,1738824645563,-510.5402488,0.0002,3]
[351861306,1738824645572,-500.0,0.0002,3]
[351861308,1738824645581,-500.0,0.0002,3]
[351861310,1738824645591,-502.17799971,0.0002,3]
[351861312,1738824645600,-500.0,0.0002,3]
[351861314,1738824645610,-284.36300923,0.0002,3]
[351861316,1738824645619,-501.69376639,0.0002,3]
[351861318,1738824645629,-506.83123181,0.0002,3]
[351861320,1738824645638,-500.0,0.0002,3]
[351861322,1738824645650,-500.0,0.0002,3]
[351861324,1738824645659,-500.0,0.0002,3]
[351861326,1738824645669,-500.0,0.0002,3]
[351861328,1738824645678,-500.0,0.0002,3]
[351861330,1738824645687,-500.0,0.0002,3]
[351861332,1738824645698,-500.0,0.0002,3]
[351861335,1738824645707,-500.0,0.0002,3]
[351861337,1738824645717,-431.29894772,0.0002,3]
[351861338,1738824645727,-466.45942762,0.0002,3]
[351861341,1738824645738,-500.0,0.0002,3]
[351861342,1738824645748,-500.0,0.0002,3]
[351861344,1738824645758,-500.0,0.0002,3]
[351861347,1738824645768,-357.39396422,0.0002,3]
[351861349,1738824645778,-464.90520429,0.0002,3]
[351861351,1738824645788,-500.0,0.0002,3]
[351861353,1738824645798,-500.0,0.0002,3]
[351861355,1738824645807,-500.0,0.0002,3]
[351861357,1738824645816,-500.0,0.0002,3]
[351861359,1738824645825,-500.0,0.0002,3]
[351861361,1738824645834,-500.0,0.0002,3]
[351861362,1738824645844,-519.10578552,0.0002,3]
[351861364,1738824645854,-500.0,0.0002,3]
[351861366,1738824645863,-500.0,0.0002,3]
[351861369,1738824645872,-500.0,0.0002,3]
[351861371,1738824645881,-500.0,0.0002,3]
[351861372,1738824645891,-517.8479736,0.0002,3]
[351861374,1738824645901,-433.8423678,0.0002,3]
[351861376,1738824645910,-500.0,0.0002,3]
[351861378,1738824645920,-500.0,0.0002,3]
[351861381,1738824645930,-500.0,0.0002,3]
[351861383,1738824645939,-507.52055,0.0002,3]
[351861385,1738824645948,-500.0,0.0002,3]
[351861387,1738824645958,-500.0,0.0002,3]
[351861389,1738824645967,-166.7381185,0.0002,3]
[351861391,1738824645976,-500.0,0.0002,3]
[351861393,1738824645986,-528.82516543,0.0002,3]
[351861395,1738824645996,-500.0,0.0002,3]
[351861397,1738824646006,-500.0,0.0002,3]
[351861399,1738824646015,-500.0,0.0002,3]
[351861401,1738824646024,-500.0,0.0002,3]
[351861403,1738824646034,-500.0,0.0002,3]
[351861405,1738824646043,-500.0,0.0002,3]
[351861407,1738824646052,-503.35462294,0.0002,3]
[351861408,1738824646064,-599.46382485,0.0002,3]
[351861410,1738824646074,-503.17954352,0.0002,3]
[351861412,1738824646083,-500.0,0.0002,3]
[351861414,1738824646092,-500.0,0.0002,3]
[351861416,1738824646102,-500.0,0.0002,3]
[351861418,1738824646112,-507.92595843,0.0002,3]
[351861420,1738824646121,-500.98717673,0.0002,3]
[351861422,1738824646130,-502.12090554,0.0002,3]
[351861424,1738824646139,-500.0,0.0002,3]
[351861427,1738824646149,-500.0,0.0002,3]
[351861429,1738824646159,-504.11032941,0.0002,3]
[351861438,1738824646236,-500.0,0.0002,3]
[351861440,1738824646245,-500.0,0.0002,3]
[351861442,1738824646255,-503.35240473,0.0002,3]
[351861444,1738824646264,-500.0,0.0002,3]
[351861446,1738824646274,-500.0,0.0002,3]
[351861448,1738824646284,-500.0,0.0002,3]
[351861450,1738824646293,-537.10250475,0.0002,3]
[351861452,1738824646303,-505.8705126,0.0002,3]
[351861454,1738824646312,-500.0,0.0002,3]
[351861456,1738824646321,-500.0,0.0002,3]
[351861458,1738824646331,-500.0,0.0002,3]
[351861460,1738824646340,-374.5861061,0.0002,3]
[351861462,1738824646350,-619.61732484,0.0002,3]
[351861464,1738824646359,-500.0,0.0002,3]
[351861466,1738824646368,-508.02898281,0.0002,3]
[351861468,1738824646377,-521.44479828,0.0002,3]
[351861470,1738824646386,-500.0,0.0002,3]
[351861472,1738824646395,-505.59214003,0.0002,3]
[351861474,1738824646404,-500.0,0.0002,3]
[351861476,1738824646414,-500.0,0.0002,3]
[351861478,1738824646423,-500.0,0.0002,3]
[351861480,1738824646433,-500.0,0.0002,3]
[351861482,1738824646443,-500.0,0.0002,3]
[351861484,1738824646452,-500.0,0.0002,3]
[351861486,1738824646461,-500.0,0.0002,3]
[351861488,1738824646471,-520.25468197,0.0002,3]
[351861490,1738824646481,-500.0,0.0002,3]
[351861492,1738824646490,-500.0,0.0002,3]
[351861494,1738824646499,-511.85743221,0.0002,3]
[351861496,1738824646508,-500.0,0.0002,3]
[351861498,1738824646517,-500.0,0.0002,3]
[351861499,1738824646527,-500.0,0.0002,3]
[351861501,1738824646536,-613.02197224,0.0002,3]
[351861503,1738824646547,-500.0,0.0002,3]
[351861505,1738824646557,-501.33360632,0.0002,3]
[351861507,1738824646566,-504.03160482,0.0002,3]
[351861510,1738824646577,-500.0,0.0002,3]
[351861511,1738824646586,-500.0,0.0002,3]
[351861513,1738824646596,-500.0,0.0002,3]
[351861515,1738824646605,-580.8983735,0.0002,3]
[351861517,1738824646615,-504.5843309,0.0002,3]
[351861519,1738824646626,-500.0,0.0002,3]
[351861522,1738824646635,-500.0,0.0002,3]
[351861524,1738824646644,-500.0,0.0002,3]
[351861525,1738824646658,-500.0,0.0002,3]
[351861527,1738824646668,-500.0,0.0002,3]
[351861529,1738824646677,-506.74647439,0.0002,3]
[351861531,1738824646686,-151.0,0.0002,2]
[351861533,1738824646697,-510.19624305,0.0002,3]
[351861535,1738824646706,-151.0,0.0002,2]
[351861537,1738824646716,-151.0,0.0002,2]
[351861539,1738824646725,-151.0,0.0002,2]
[351861541,1738824646736,-176.359374,0.0002,2]
[351861542,1738824646745,-500.38651224,0.0002,3]
[351861544,1738824646755,-500.0,0.0002,3]
[351861546,1738824646764,-500.0,0.0002,3]
[351861547,1738824646774,-360.92014414,0.0002,3]
[351861549,1738824646784,-500.0,0.0002,3]
[351861551,1738824646793,-507.10859688,0.0002,3]
[351861553,1738824646802,-501.07986975,0.0002,3]
[351861554,1738824646811,-500.0,0.0002,3]
[351861556,1738824646821,-500.0,0.0002,3]
[351861558,1738824646830,-500.0,0.0002,3]
[351861559,1738824646840,-510.17803664,0.0002,3]
[351861561,1738824646850,-498.9837889,0.0002,3]
[351861563,1738824646860,-503.49143744,0.0002,3]
[351861564,1738824646869,-500.0,0.0002,3]
[351861566,1738824646878,-500.0,0.0002,3]
[351861568,1738824646887,-500.0,0.0002,3]
[351861570,1738824646897,-500.0,0.0002,3]
[351861571,1738824646906,-500.0,0.0002,3]
[351861573,1738824646915,-500.0,0.0002,3]
[351861575,1738824646924,-512.28288108,0.0002,3]
[351861576,1738824646933,-500.0,0.0002,3]
[351861578,1738824646942,-500.0,0.0002,3]
[351861580,1738824646951,-286.7603233,0.0002,3]
[351861581,1738824646960,-500.0,0.0002,3]
[351861583,1738824646969,-500.0,0.0002,3]
[351861585,1738824646979,-500.0,0.0002,3]
[351861587,1738824646988,-500.0,0.0002,3]
[351861589,1738824647000,-500.0,0.0002,3]
[351861591,1738824647017,-500.0,0.0002,3]
[351861593,1738824647035,-500.0,0.0002,3]
[351861594,1738824647046,-612.76513341,0.0002,3]
[351861596,1738824647055,-273.16163689,0.0002,3]
[351861598,1738824647064,-567.81065464,0.0002,3]
[351861599,1738824647074,-506.63821938,0.0002,3]
[351861601,1738824647083,-500.0,0.0002,3]
[351861603,1738824647092,-500.0,0.0002,3]
[351861604,1738824647101,-502.05830773,0.0002,3]
[351861606,1738824647111,-500.0,0.0002,3]
[351861608,1738824647121,-500.0,0.0002,3]
[351861610,1738824647131,-500.0,0.0002,3]
[351861612,1738824647140,-544.83573231,0.0002,3]
[351861613,1738824647150,-500.0,0.0002,3]
[351861615,1738824647159,-151.0,0.0002,7]
[351861617,1738824647168,-500.0,0.0002,3]
[351861618,1738824647177,-151.0,0.0002,7]
[351861620,1738824647187,-500.0,0.0002,3]
[351861622,1738824647197,-151.0,0.0002,7]
[351861624,1738824647206,-500.0,0.0002,3]
[351861626,1738824647216,-151.0,0.0002,7]
[351861627,1738824647225,-503.26767099,0.0002,3]
[351861629,1738824647234,-151.0,0.0002,7]
[351861631,1738824647244,-500.0,0.0002,3]
[351861633,1738824647254,-500.0,0.0002,3]
[351861635,1738824647263,-151.0,0.0002,7]
[351861637,1738824647274,-500.0,0.0002,3]
[351861638,1738824647284,-500.0,0.0002,3]
[351861640,1738824647294,-161.18732624,0.0002,7]
[351861642,1738824647303,-500.0,0.0002,3]
[351861644,1738824647313,-500.0,0.0002,3]
[351861646,1738824647322,-258.27118286,0.0002,3]
[351861647,1738824647332,-500.0,0.0002,3]
[351861649,1738824647345,-500.0,0.0002,3]
[351861651,1738824647356,-500.0,0.0002,3]
[351861653,1738824647366,-500.0,0.0002,3]
[351861655,1738824647376,-500.0,0.0002,3]
[351861656,1738824647385,-500.0,0.0002,3]
[351861658,1738824647395,-585.29993744,0.0002,3]
[351861660,1738824647405,-500.0,0.0002,3]
[351861662,1738824647415,-500.0,0.0002,3]
[351861663,1738824647424,-500.0,0.0002,3]
[351861665,1738824647433,-500.0,0.0002,3]
[351861667,1738824647443,-500.0,0.0002,3]
[351861669,1738824647452,-500.0,0.0002,3]
[351861671,1738824647462,-500.0,0.0002,3]
[351861672,1738824647471,-500.0,0.0002,3]
[351861674,1738824647480,-500.0,0.0002,3]
[351861676,1738824647490,-510.71419347,0.0002,3]
[351861678,1738824647499,-500.0,0.0002,3]
[351861680,1738824647508,-500.0,0.0002,3]
[351861681,1738824647518,-500.0,0.0002,3]
[351861683,1738824647528,-505.26378108,0.0002,3]
[351861691,1738824647608,-500.0,0.0002,3]
[351861693,1738824647619,-500.0,0.0002,3]
[351861694,1738824647628,-500.0,0.0002,3]
[351861696,1738824647638,-500.0,0.0002,3]
[351861698,1738824647650,-513.09155751,0.0002,3]
[351861700,1738824647660,-500.0,0.0002,3]
[351861701,1738824647670,-405.09917381,0.0002,3]
[351861703,1738824647680,-500.0,0.0002,3]
[351861705,1738824647691,-500.0,0.0002,3]
[351861707,1738824647701,-500.0,0.0002,3]
[351861708,1738824647710,-500.0,0.0002,3]
[351861710,1738824647719,-500.0,0.0002,3]
[351861712,1738824647732,-500.0,0.0002,3]
[351861714,1738824647743,-500.0,0.0002,3]
[351861716,1738824647753,-500.0,0.0002,3]
[351861718,1738824647764,-500.0,0.0002,3]
[351861719,1738824647775,-500.0,0.0002,3]
[351861721,1738824647785,-500.0,0.0002,3]
[351861723,1738824647794,-500.0,0.0002,3]
[351861725,1738824647804,-500.0,0.0002,3]
[351861726,1738824647814,-500.0,0.0002,3]
[351861728,1738824647825,-264.70722483,0.0002,3]
[351861730,1738824647835,-500.0,0.0002,3]
[351861732,1738824647851,-500.0,0.0002,3]
[351861734,1738824647862,-500.0,0.0002,3]
[351861735,1738824647875,-500.0,0.0002,3]
[351861737,1738824647885,-501.94024397,0.0002,3]
[351861739,1738824647895,-516.67627278,0.0002,3]